[Event "Titled Tuesday Blitz July 25 Late 2023"]
[White "Tsukerman, Julia"]
[Black "Rangel, Daniel"]
[WhiteFideId "2621649"]
[BlackFideId "2124475"]
[WhiteElo "2113"]
[BlackElo "2447"]
[Result "0-1"]
[Round "2"]
[TimeControl "180+2"]
[Date "2023.07.25"]
[WhiteClock "0:00:04"]
[BlackClock "0:00:26"]
[Board "191"]

1. e4 {[%clk 0:02:59]}  c5 {[%clk 0:02:59]} 2. Nf3 {[%clk 0:02:52]}  g6 {[%clk 0:02:59]} 3. d4 {[%clk 0:02:53]}  cxd4 {[%clk 0:02:59]} 4. Nxd4 {[%clk 0:02:54]}  Bg7 {[%clk 0:03:00]} 5. c4 {[%clk 0:02:53]}  Nc6 {[%clk 0:03:00]} 6. Be3 {[%clk 0:02:53]}  Nf6 {[%clk 0:03:00]} 7. Nc3 {[%clk 0:02:54]}  O-O {[%clk 0:03:00]} 8. Be2 {[%clk 0:02:48]}  Nxd4 {[%clk 0:03:00]} 9. Bxd4 {[%clk 0:02:48]}  d6 {[%clk 0:03:00]} 10. O-O {[%clk 0:02:48]}  Bd7 {[%clk 0:02:46]} 11. Qd2 {[%clk 0:02:46]}  Bc6 {[%clk 0:02:46]} 12. f3 {[%clk 0:02:41]}  Nd7 {[%clk 0:02:34]} 13. Rac1 {[%clk 0:02:34]}  a5 {[%clk 0:02:26]} 14. b3 {[%clk 0:02:28]}  Bxd4+ {[%clk 0:02:22]} 15. Qxd4 {[%clk 0:02:26]}  Qb6 {[%clk 0:02:23]} 16. Qxb6 {[%clk 0:02:24]}  Nxb6 {[%clk 0:02:24]} 17. Nd5 {[%clk 0:02:23]}  Bxd5 {[%clk 0:02:18]} 18. exd5 {[%clk 0:02:23]}  Nd7 {[%clk 0:02:17]} 19. Rfe1 {[%clk 0:02:18]}  Nc5 {[%clk 0:02:15]} 20. Bf1 {[%clk 0:02:17]}  Rfe8 {[%clk 0:02:13]} 21. Kf2 {[%clk 0:02:17]}  Kf8 {[%clk 0:02:13]} 22. Re3 {[%clk 0:02:15]}  b6 {[%clk 0:02:00]} 23. g3 {[%clk 0:02:04]}  Ra7 {[%clk 0:02:00]} 24. a3 {[%clk 0:01:52]}  Rc8 {[%clk 0:01:54]} 25. Bh3 {[%clk 0:01:50]}  Rcc7 {[%clk 0:01:42]} 26. Rec3 {[%clk 0:01:43]}  h5 {[%clk 0:01:23]} 27. Ke3 {[%clk 0:01:40]}  a4 {[%clk 0:01:22]} 28. b4 {[%clk 0:01:36]}  Nb3 {[%clk 0:01:22]} 29. R1c2 {[%clk 0:01:32]}  Kg7 {[%clk 0:01:18]} 30. Ke4 {[%clk 0:01:16]}  Kf6 {[%clk 0:01:18]} 31. Bf1 {[%clk 0:01:12]}  Ra8 {[%clk 0:01:16]} 32. Bd3 {[%clk 0:00:43]}  e5 {[%clk 0:00:59]} 33. f4 {[%clk 0:00:23]}  Re8 {[%clk 0:00:56]} 34. Re2 {[%clk 0:00:16]}  exf4+ {[%clk 0:00:52]} 35. Kxf4 {[%clk 0:00:15]}  g5+ {[%clk 0:00:52]} 36. Kf3 {[%clk 0:00:14]}  Nd4+ {[%clk 0:00:53]} 37. Kf2 {[%clk 0:00:11]}  Nxe2 {[%clk 0:00:53]} 38. Bxe2 {[%clk 0:00:11]}  g4 {[%clk 0:00:49]} 39. Bd3 {[%clk 0:00:10]}  Rce7 {[%clk 0:00:47]} 40. Rc2 {[%clk 0:00:10]}  Re3 {[%clk 0:00:46]} 41. Rd2 {[%clk 0:00:08]}  Rf3+ {[%clk 0:00:45]} 42. Kg2 {[%clk 0:00:07]}  Ree3 {[%clk 0:00:43]} 43. Be2 {[%clk 0:00:07]}  Rf5 {[%clk 0:00:40]} 44. Bd3 {[%clk 0:00:07]}  Rfe5 {[%clk 0:00:37]} 45. Kf2 {[%clk 0:00:07]}  Kg5 {[%clk 0:00:34]} 46. Be2 {[%clk 0:00:05]}  Rxa3 {[%clk 0:00:33]} 47. Rc2 {[%clk 0:00:06]}  Rae3 {[%clk 0:00:27]} 48. c5 {[%clk 0:00:04]}  dxc5 {[%clk 0:00:26]} 0-1


[Site "https://www.chess.com"]

[Event "Titled Tuesday Blitz July 25 Late 2023"]
[White "Jahnz, Fabian"]
[Black "Szyszylo, Rafal"]
[WhiteFideId "4653300"]
[BlackFideId "1109626"]
[WhiteElo "2105"]
[BlackElo "2444"]
[Result "0-1"]
[Round "2"]
[TimeControl "180+2"]
[Date "2023.07.25"]
[WhiteClock "0:00:19"]
[BlackClock "0:00:15"]
[Board "192"]

1. e4 {[%clk 0:03:00]}  d6 {[%clk 0:02:58]} 2. d4 {[%clk 0:03:00]}  Nf6 {[%clk 0:02:57]} 3. Nc3 {[%clk 0:03:00]}  g6 {[%clk 0:02:58]} 4. Bg5 {[%clk 0:03:00]}  Bg7 {[%clk 0:02:57]} 5. e5 {[%clk 0:03:00]}  Nfd7 {[%clk 0:02:58]} 6. exd6 {[%clk 0:03:00]}  cxd6 {[%clk 0:02:59]} 7. Qd2 {[%clk 0:03:01]}  h6 {[%clk 0:02:58]} 8. Be3 {[%clk 0:03:00]}  Nc6 {[%clk 0:02:58]} 9. O-O-O {[%clk 0:03:01]}  a6 {[%clk 0:02:57]} 10. Kb1 {[%clk 0:03:00]}  b5 {[%clk 0:02:54]} 11. d5 {[%clk 0:02:59]}  Nce5 {[%clk 0:02:53]} 12. h3 {[%clk 0:02:58]}  Nb6 {[%clk 0:02:44]} 13. f4 {[%clk 0:02:57]}  Nec4 {[%clk 0:02:44]} 14. Bxc4 {[%clk 0:02:54]}  Nxc4 {[%clk 0:02:45]} 15. Qd3 {[%clk 0:02:53]}  Bf5 {[%clk 0:02:21]} 16. Qe2 {[%clk 0:02:43]}  Nxb2 {[%clk 0:01:23]} 17. Kxb2 {[%clk 0:01:58]}  Qa5 {[%clk 0:01:13]} 18. Bd2 {[%clk 0:00:55]}  Qb4+ {[%clk 0:00:35]} 19. Ka1 {[%clk 0:00:54]}  Bxc3+ {[%clk 0:00:35]} 20. Bxc3 {[%clk 0:00:52]}  Qxc3+ {[%clk 0:00:36]} 21. Kb1 {[%clk 0:00:52]}  Rc8 {[%clk 0:00:31]} 22. Rd2 {[%clk 0:00:27]}  Rc4 {[%clk 0:00:27]} 23. Rd3 {[%clk 0:00:23]}  Bxd3 {[%clk 0:00:18]} 24. Qxd3 {[%clk 0:00:23]}  Rb4+ {[%clk 0:00:16]} 25. Kc1 {[%clk 0:00:19]}  Qe1+ {[%clk 0:00:15]} 0-1


[Site "https://www.chess.com"]

[Event "Titled Tuesday Blitz July 25 Late 2023"]
[White "Ladan, Nicholas"]
[Black "Bongo Akanga Ndjila, Barthelemy"]
[WhiteFideId "30918855"]
[BlackFideId "10609431"]
[WhiteElo "2438"]
[BlackElo "2058"]
[Result "1-0"]
[Round "2"]
[TimeControl "180+2"]
[Date "2023.07.25"]
[WhiteClock "0:02:07"]
[BlackClock "0:01:21"]
[Board "196"]

1. d4 {[%clk 0:03:00]}  d5 {[%clk 0:02:54]} 2. c4 {[%clk 0:03:01]}  e6 {[%clk 0:02:53]} 3. Nf3 {[%clk 0:03:00]}  Nf6 {[%clk 0:02:54]} 4. g3 {[%clk 0:03:01]}  Be7 {[%clk 0:02:52]} 5. Bg2 {[%clk 0:03:01]}  O-O {[%clk 0:02:52]} 6. O-O {[%clk 0:03:02]}  c6 {[%clk 0:02:51]} 7. Qc2 {[%clk 0:03:01]}  a5 {[%clk 0:02:50]} 8. Nbd2 {[%clk 0:03:01]}  b6 {[%clk 0:02:46]} 9. e4 {[%clk 0:03:01]}  Bb7 {[%clk 0:02:45]} 10. e5 {[%clk 0:02:56]}  Nfd7 {[%clk 0:02:43]} 11. cxd5 {[%clk 0:02:57]}  cxd5 {[%clk 0:02:43]} 12. Rd1 {[%clk 0:02:56]}  Na6 {[%clk 0:02:43]} 13. a3 {[%clk 0:02:54]}  Rc8 {[%clk 0:02:42]} 14. Qb3 {[%clk 0:02:44]}  Bc6 {[%clk 0:02:35]} 15. Nf1 {[%clk 0:02:39]}  b5 {[%clk 0:02:35]} 16. Ne3 {[%clk 0:02:35]}  a4 {[%clk 0:02:32]} 17. Qd3 {[%clk 0:02:33]}  Qb6 {[%clk 0:02:29]} 18. Bf1 {[%clk 0:02:30]}  Nab8 {[%clk 0:02:21]} 19. h4 {[%clk 0:02:26]}  b4 {[%clk 0:02:20]} 20. Ng5 {[%clk 0:02:22]}  g6 {[%clk 0:02:18]} 21. Ng4 {[%clk 0:02:18]}  Bxg5 {[%clk 0:01:54]} 22. hxg5 {[%clk 0:02:18]}  f5 {[%clk 0:01:54]} 23. gxf6 {[%clk 0:02:17]}  bxa3 {[%clk 0:01:39]} 24. Qxa3 {[%clk 0:02:10]}  Bb5 {[%clk 0:01:34]} 25. Qe7 {[%clk 0:02:07]}  Rf7 {[%clk 0:01:31]} 26. Nh6+ {[%clk 0:02:06]}  Kh8 {[%clk 0:01:27]} 27. Nxf7+ {[%clk 0:02:06]}  Kg8 {[%clk 0:01:21]} 28. Nh6+ {[%clk 0:02:07]} 1-0


[Site "https://www.chess.com"]

[Event "Titled Tuesday Blitz July 25 Late 2023"]
[White "Gyulamiryan-koryun"]
[Black "SergioMoralesG"]
[WhiteElo "2055"]
[BlackElo "2438"]
[Result "0-1"]
[Round "2"]
[TimeControl "180+2"]
[Date "2023.07.25"]
[WhiteClock "0:00:00"]
[BlackClock "0:00:10"]
[Board "197"]

1. e4 {[%clk 0:02:55]}  c5 {[%clk 0:02:59]} 2. Be2 {[%clk 0:02:53]}  Nc6 {[%clk 0:02:58]} 3. f4 {[%clk 0:02:51]}  g6 {[%clk 0:02:57]} 4. c3 {[%clk 0:02:51]}  Bg7 {[%clk 0:02:57]} 5. Nf3 {[%clk 0:02:51]}  d5 {[%clk 0:02:57]} 6. e5 {[%clk 0:02:50]}  d4 {[%clk 0:02:53]} 7. O-O {[%clk 0:02:47]}  f6 {[%clk 0:02:52]} 8. Bb5 {[%clk 0:02:41]}  Qb6 {[%clk 0:02:34]} 9. Bxc6+ {[%clk 0:02:40]}  Qxc6 {[%clk 0:02:35]} 10. cxd4 {[%clk 0:02:38]}  cxd4 {[%clk 0:02:34]} 11. d3 {[%clk 0:02:33]}  Bg4 {[%clk 0:02:29]} 12. Nbd2 {[%clk 0:02:31]}  Nh6 {[%clk 0:01:56]} 13. Qe1 {[%clk 0:02:15]}  O-O {[%clk 0:01:49]} 14. b3 {[%clk 0:02:06]}  Qc3 {[%clk 0:01:40]} 15. Ba3 {[%clk 0:01:50]}  Qxd3 {[%clk 0:01:38]} 16. Bxe7 {[%clk 0:01:48]}  Rfe8 {[%clk 0:01:32]} 17. Bd6 {[%clk 0:01:33]}  Nf5 {[%clk 0:01:28]} 18. Qb1 {[%clk 0:01:27]}  Qe3+ {[%clk 0:01:21]} 19. Kh1 {[%clk 0:01:26]}  Nxd6 {[%clk 0:01:18]} 20. exd6 {[%clk 0:01:25]}  Qxf4 {[%clk 0:01:11]} 21. Qd3 {[%clk 0:01:13]}  Qxd6 {[%clk 0:01:10]} 22. Nc4 {[%clk 0:01:10]}  Qd5 {[%clk 0:01:07]} 23. h3 {[%clk 0:01:02]}  Bxf3 {[%clk 0:01:01]} 24. Rxf3 {[%clk 0:01:01]}  Rad8 {[%clk 0:00:58]} 25. Raf1 {[%clk 0:00:59]}  Qe4 {[%clk 0:00:56]} 26. Qxe4 {[%clk 0:00:46]}  Rxe4 {[%clk 0:00:56]} 27. Na5 {[%clk 0:00:44]}  b6 {[%clk 0:00:43]} 28. Nc6 {[%clk 0:00:43]}  Rd7 {[%clk 0:00:36]} 29. b4 {[%clk 0:00:39]}  f5 {[%clk 0:00:33]} 30. Rd3 {[%clk 0:00:30]}  Re3 {[%clk 0:00:30]} 31. Rfd1 {[%clk 0:00:30]}  Rxd3 {[%clk 0:00:28]} 32. Rxd3 {[%clk 0:00:29]}  Kf7 {[%clk 0:00:25]} 33. Kg1 {[%clk 0:00:28]}  Ke6 {[%clk 0:00:24]} 34. Kf2 {[%clk 0:00:25]}  Kd5 {[%clk 0:00:23]} 35. b5 {[%clk 0:00:25]}  Kc4 {[%clk 0:00:23]} 36. Rb3 {[%clk 0:00:18]}  d3 {[%clk 0:00:20]} 37. Ke1 {[%clk 0:00:16]}  Bc3+ {[%clk 0:00:13]} 38. Kd1 {[%clk 0:00:15]}  Rd5 {[%clk 0:00:10]} 39. Nxa7 {[%clk 0:00:00]}  Re5 {[%clk 0:00:10]} 0-1


[Site "https://www.chess.com"]

[Event "Titled Tuesday Blitz July 25 Late 2023"]
[White "Blackwhite017"]
[Black "Silva Lucena, Cristian"]
[BlackFideId "2232588"]
[WhiteElo "2034"]
[BlackElo "2430"]
[Result "0-1"]
[Round "2"]
[TimeControl "180+2"]
[Date "2023.07.25"]
[WhiteClock "0:00:00"]
[BlackClock "0:00:46"]
[Board "200"]

1. e4 {[%clk 0:03:00]}  c5 {[%clk 0:02:47]} 2. Nf3 {[%clk 0:02:59]}  d6 {[%clk 0:02:45]} 3. g3 {[%clk 0:02:56]}  g6 {[%clk 0:02:41]} 4. Bg2 {[%clk 0:02:56]}  Bg7 {[%clk 0:02:40]} 5. O-O {[%clk 0:02:56]}  Nf6 {[%clk 0:02:39]} 6. d3 {[%clk 0:02:55]}  Nfd7 {[%clk 0:02:39]} 7. Qe2 {[%clk 0:02:54]}  O-O {[%clk 0:02:40]} 8. c3 {[%clk 0:02:53]}  Nc6 {[%clk 0:02:40]} 9. h4 {[%clk 0:02:51]}  Rb8 {[%clk 0:02:41]} 10. Re1 {[%clk 0:02:32]}  b5 {[%clk 0:02:41]} 11. Be3 {[%clk 0:02:30]}  b4 {[%clk 0:02:39]} 12. d4 {[%clk 0:02:28]}  bxc3 {[%clk 0:02:22]} 13. bxc3 {[%clk 0:02:09]}  cxd4 {[%clk 0:02:19]} 14. cxd4 {[%clk 0:02:03]}  Qa5 {[%clk 0:02:19]} 15. Qd2 {[%clk 0:01:34]}  Qxd2 {[%clk 0:01:45]} 16. Nbxd2 {[%clk 0:01:33]}  Ba6 {[%clk 0:01:43]} 17. Rab1 {[%clk 0:01:15]}  Nb4 {[%clk 0:01:43]} 18. a3 {[%clk 0:00:50]}  Nc2 {[%clk 0:01:42]} 19. Rec1 {[%clk 0:00:40]}  Rxb1 {[%clk 0:01:22]} 20. Rxb1 {[%clk 0:00:41]}  Nb6 {[%clk 0:01:17]} 21. Rb2 {[%clk 0:00:30]}  Rc8 {[%clk 0:01:02]} 22. Bh3 {[%clk 0:00:23]}  Rc7 {[%clk 0:01:00]} 23. e5 {[%clk 0:00:14]}  Nxe3 {[%clk 0:00:51]} 24. fxe3 {[%clk 0:00:10]}  dxe5 {[%clk 0:00:52]} 25. Nxe5 {[%clk 0:00:04]}  Bxe5 {[%clk 0:00:52]} 26. dxe5 {[%clk 0:00:05]}  Nd5 {[%clk 0:00:51]} 27. e4 {[%clk 0:00:02]}  Nc3 {[%clk 0:00:48]} 28. Rb8+ {[%clk 0:00:02]}  Kg7 {[%clk 0:00:49]} 29. e6 {[%clk 0:00:00]}  f6 {[%clk 0:00:46]} 0-1


[Site "https://www.chess.com"]

[Event "Titled Tuesday Blitz July 25 Late 2023"]
[White "Baches Garcia, Guillermo"]
[Black "dorpato"]
[WhiteFideId "2209764"]
[WhiteElo "2430"]
[BlackElo "2034"]
[Result "1-0"]
[Round "2"]
[TimeControl "180+2"]
[Date "2023.07.25"]
[WhiteClock "0:00:33"]
[BlackClock "0:00:07"]
[Board "201"]

1. e4 {[%clk 0:03:00]}  c5 {[%clk 0:02:14]} 2. Nf3 {[%clk 0:03:01]}  d6 {[%clk 0:02:10]} 3. d4 {[%clk 0:03:01]}  cxd4 {[%clk 0:02:11]} 4. Nxd4 {[%clk 0:03:02]}  Nf6 {[%clk 0:02:10]} 5. Nc3 {[%clk 0:03:02]}  a6 {[%clk 0:02:11]} 6. Be3 {[%clk 0:03:03]}  e5 {[%clk 0:02:10]} 7. Nb3 {[%clk 0:03:02]}  Be7 {[%clk 0:02:11]} 8. f3 {[%clk 0:03:02]}  O-O {[%clk 0:02:10]} 9. Qd2 {[%clk 0:03:01]}  Be6 {[%clk 0:02:10]} 10. O-O-O {[%clk 0:03:01]}  b5 {[%clk 0:02:10]} 11. g4 {[%clk 0:03:02]}  h6 {[%clk 0:02:09]} 12. h4 {[%clk 0:02:57]}  Nh7 {[%clk 0:02:07]} 13. Qf2 {[%clk 0:02:46]}  Nd7 {[%clk 0:02:02]} 14. Nd5 {[%clk 0:02:39]}  Bxd5 {[%clk 0:02:00]} 15. Rxd5 {[%clk 0:02:39]}  Rc8 {[%clk 0:01:56]} 16. Kb1 {[%clk 0:02:35]}  Qc7 {[%clk 0:01:39]} 17. Rd2 {[%clk 0:02:19]}  a5 {[%clk 0:01:26]} 18. Bxb5 {[%clk 0:02:16]}  Nc5 {[%clk 0:01:20]} 19. Nxc5 {[%clk 0:02:08]}  dxc5 {[%clk 0:01:18]} 20. Rd7 {[%clk 0:02:07]}  Qb6 {[%clk 0:01:11]} 21. a4 {[%clk 0:02:04]}  Bf6 {[%clk 0:01:02]} 22. g5 {[%clk 0:01:44]}  hxg5 {[%clk 0:00:54]} 23. hxg5 {[%clk 0:01:44]}  Bxg5 {[%clk 0:00:47]} 24. Bxg5 {[%clk 0:01:05]}  Nxg5 {[%clk 0:00:46]} 25. f4 {[%clk 0:01:02]}  Nxe4 {[%clk 0:00:36]} 26. Qg2 {[%clk 0:00:53]}  Nf6 {[%clk 0:00:20]} 27. Qh3 {[%clk 0:00:48]}  Nh5 {[%clk 0:00:14]} 28. Qxh5 {[%clk 0:00:47]}  Qh6 {[%clk 0:00:15]} 29. Qxh6 {[%clk 0:00:40]}  gxh6 {[%clk 0:00:15]} 30. fxe5 {[%clk 0:00:38]}  Kg7 {[%clk 0:00:15]} 31. e6 {[%clk 0:00:37]}  Rb8 {[%clk 0:00:11]} 32. e7 {[%clk 0:00:34]}  Rfe8 {[%clk 0:00:07]} 33. Ra7 {[%clk 0:00:33]} 1-0


[Site "https://www.chess.com"]

[Event "Titled Tuesday Blitz July 25 Late 2023"]
[White "Lutz, Igor Oscar"]
[Black "Mickiewicz, Piotr"]
[WhiteFideId "2110806"]
[BlackFideId "1114891"]
[WhiteElo "1929"]
[BlackElo "2424"]
[Result "0-1"]
[Round "2"]
[TimeControl "180+2"]
[Date "2023.07.25"]
[WhiteClock "0:00:00"]
[BlackClock "0:00:20"]
[Board "206"]

1. d4 {[%clk 0:03:00]}  Nf6 {[%clk 0:02:58]} 2. c4 {[%clk 0:03:00]}  e6 {[%clk 0:02:55]} 3. g3 {[%clk 0:03:00]}  Bb4+ {[%clk 0:02:53]} 4. Bd2 {[%clk 0:03:00]}  Qe7 {[%clk 0:02:53]} 5. Bg2 {[%clk 0:02:59]}  O-O {[%clk 0:02:53]} 6. Nf3 {[%clk 0:02:57]}  Nc6 {[%clk 0:02:49]} 7. O-O {[%clk 0:02:56]}  Bxd2 {[%clk 0:02:46]} 8. Nbxd2 {[%clk 0:02:55]}  d6 {[%clk 0:02:47]} 9. e4 {[%clk 0:02:51]}  e5 {[%clk 0:02:46]} 10. d5 {[%clk 0:02:51]}  Nb8 {[%clk 0:02:40]} 11. b4 {[%clk 0:02:48]}  a5 {[%clk 0:02:38]} 12. a3 {[%clk 0:02:47]}  Bg4 {[%clk 0:02:36]} 13. Qc2 {[%clk 0:02:38]}  Nbd7 {[%clk 0:02:23]} 14. Rfc1 {[%clk 0:02:30]}  b6 {[%clk 0:02:08]} 15. Nb3 {[%clk 0:02:24]}  a4 {[%clk 0:02:04]} 16. Nbd2 {[%clk 0:02:21]}  g6 {[%clk 0:02:01]} 17. h3 {[%clk 0:02:04]}  Bxf3 {[%clk 0:02:00]} 18. Bxf3 {[%clk 0:02:03]}  Ne8 {[%clk 0:02:01]} 19. Bg4 {[%clk 0:01:46]}  Ndf6 {[%clk 0:01:52]} 20. Bf3 {[%clk 0:01:44]}  Ng7 {[%clk 0:01:36]} 21. c5 {[%clk 0:01:34]}  bxc5 {[%clk 0:01:29]} 22. bxc5 {[%clk 0:01:35]}  Rfb8 {[%clk 0:01:25]} 23. cxd6 {[%clk 0:01:27]}  cxd6 {[%clk 0:01:26]} 24. Rab1 {[%clk 0:01:21]}  Nfe8 {[%clk 0:01:19]} 25. Rxb8 {[%clk 0:01:11]}  Rxb8 {[%clk 0:01:20]} 26. Qxa4 {[%clk 0:01:11]}  f5 {[%clk 0:01:18]} 27. Qc6 {[%clk 0:01:03]}  Qa7 {[%clk 0:01:15]} 28. a4 {[%clk 0:00:52]}  Rb2 {[%clk 0:01:05]} 29. Rc2 {[%clk 0:00:48]}  Qd4 {[%clk 0:00:57]} 30. exf5 {[%clk 0:00:40]}  gxf5 {[%clk 0:00:53]} 31. Bh5 {[%clk 0:00:38]}  Rxc2 {[%clk 0:00:52]} 32. Qxc2 {[%clk 0:00:26]}  Nxh5 {[%clk 0:00:51]} 33. Nf3 {[%clk 0:00:24]}  Qa1+ {[%clk 0:00:36]} 34. Kg2 {[%clk 0:00:22]}  Nhg7 {[%clk 0:00:28]} 35. Ng5 {[%clk 0:00:16]}  Qd4 {[%clk 0:00:24]} 36. Qc8 {[%clk 0:00:16]}  Qxd5+ {[%clk 0:00:23]} 37. Kg1 {[%clk 0:00:15]}  h6 {[%clk 0:00:23]} 38. Ne6 {[%clk 0:00:00]}  Qxe6 {[%clk 0:00:20]} 0-1


[Site "https://www.chess.com"]

[Event "Titled Tuesday Blitz July 25 Late 2023"]
[White "Gatterer, Florian"]
[Black "Burke, Paul"]
[WhiteFideId "811688"]
[BlackFideId "2605767"]
[WhiteElo "2424"]
[BlackElo "1914"]
[Result "1-0"]
[Round "2"]
[TimeControl "180+2"]
[Date "2023.07.25"]
[WhiteClock "0:01:45"]
[BlackClock "0:01:36"]
[Board "207"]

1. b3 {[%clk 0:03:00]}  a6 {[%clk 0:02:58]} 2. Bb2 {[%clk 0:03:00]}  d6 {[%clk 0:02:59]} 3. g3 {[%clk 0:02:58]}  Nd7 {[%clk 0:02:59]} 4. Bg2 {[%clk 0:02:59]}  Ngf6 {[%clk 0:02:59]} 5. d4 {[%clk 0:02:59]}  g6 {[%clk 0:02:59]} 6. Nf3 {[%clk 0:02:59]}  Bg7 {[%clk 0:02:59]} 7. O-O {[%clk 0:02:59]}  O-O {[%clk 0:02:59]} 8. Re1 {[%clk 0:02:59]}  Re8 {[%clk 0:02:56]} 9. e4 {[%clk 0:02:59]}  e5 {[%clk 0:02:56]} 10. dxe5 {[%clk 0:03:00]}  dxe5 {[%clk 0:02:53]} 11. Nbd2 {[%clk 0:02:59]}  c6 {[%clk 0:02:48]} 12. Nc4 {[%clk 0:02:59]}  Qc7 {[%clk 0:02:47]} 13. Ba3 {[%clk 0:02:53]}  c5 {[%clk 0:02:41]} 14. Qd6 {[%clk 0:02:36]}  Qxd6 {[%clk 0:02:36]} 15. Nxd6 {[%clk 0:02:37]}  Re6 {[%clk 0:02:35]} 16. Rad1 {[%clk 0:02:32]}  Bf8 {[%clk 0:02:25]} 17. Nxc8 {[%clk 0:02:19]}  Rxc8 {[%clk 0:02:24]} 18. Bh3 {[%clk 0:02:17]}  Re7 {[%clk 0:02:18]} 19. Bb2 {[%clk 0:02:02]}  Rc7 {[%clk 0:02:11]} 20. a4 {[%clk 0:02:02]}  b5 {[%clk 0:02:09]} 21. axb5 {[%clk 0:02:01]}  axb5 {[%clk 0:02:09]} 22. Bf1 {[%clk 0:02:02]}  c4 {[%clk 0:02:09]} 23. bxc4 {[%clk 0:01:49]}  bxc4 {[%clk 0:02:09]} 24. Bc3 {[%clk 0:01:49]}  Re8 {[%clk 0:01:55]} 25. Ra1 {[%clk 0:01:48]}  Nc5 {[%clk 0:01:36]} 26. Bxe5 {[%clk 0:01:45]} 1-0


[Site "https://www.chess.com"]

[Event "Titled Tuesday Blitz July 25 Late 2023"]
[White "Riehle, Marco"]
[Black "Firouzja, Alireza"]
[WhiteFideId "12904392"]
[BlackFideId "12573981"]
[WhiteElo "2791"]
[BlackElo "3114"]
[Result "1-0"]
[Round "3"]
[TimeControl "180+2"]
[Date "2023.07.25"]
[WhiteClock "0:00:23"]
[BlackClock "0:00:12"]
[Board "4"]

1. e4 {[%clk 0:03:00]}  c5 {[%clk 0:02:59]} 2. a3 {[%clk 0:02:59]}  g6 {[%clk 0:02:56]} 3. h4 {[%clk 0:02:59]}  Bg7 {[%clk 0:02:43]} 4. h5 {[%clk 0:02:59]}  Nc6 {[%clk 0:02:44]} 5. Nc3 {[%clk 0:02:58]}  e6 {[%clk 0:02:35]} 6. Bc4 {[%clk 0:02:57]}  Nge7 {[%clk 0:02:34]} 7. d3 {[%clk 0:02:57]}  d5 {[%clk 0:02:28]} 8. Ba2 {[%clk 0:02:57]}  Bxc3+ {[%clk 0:01:47]} 9. bxc3 {[%clk 0:02:57]}  dxe4 {[%clk 0:01:48]} 10. hxg6 {[%clk 0:02:45]}  Nxg6 {[%clk 0:01:47]} 11. Be3 {[%clk 0:02:33]}  exd3 {[%clk 0:01:44]} 12. cxd3 {[%clk 0:02:33]}  b6 {[%clk 0:01:40]} 13. Nf3 {[%clk 0:02:22]}  Bb7 {[%clk 0:01:27]} 14. d4 {[%clk 0:02:17]}  cxd4 {[%clk 0:01:23]} 15. cxd4 {[%clk 0:02:17]}  Nce7 {[%clk 0:01:17]} 16. Bg5 {[%clk 0:01:40]}  Qd7 {[%clk 0:01:04]} 17. Bf6 {[%clk 0:01:36]}  Rg8 {[%clk 0:01:01]} 18. Rxh7 {[%clk 0:01:26]}  Qb5 {[%clk 0:00:52]} 19. a4 {[%clk 0:00:52]}  Qf5 {[%clk 0:00:47]} 20. Bxe7 {[%clk 0:00:48]}  Nxe7 {[%clk 0:00:44]} 21. Rh1 {[%clk 0:00:46]}  Rxg2 {[%clk 0:00:42]} 22. Rh8+ {[%clk 0:00:46]}  Ng8 {[%clk 0:00:35]} 23. d5 {[%clk 0:00:46]}  O-O-O {[%clk 0:00:25]} 24. Kf1 {[%clk 0:00:43]}  Rg4 {[%clk 0:00:22]} 25. Nd4 {[%clk 0:00:30]}  Ba6+ {[%clk 0:00:18]} 26. Nb5 {[%clk 0:00:27]}  Qg5 {[%clk 0:00:14]} 27. Qc2+ {[%clk 0:00:23]}  Kb8 {[%clk 0:00:14]} 28. Qc7+ {[%clk 0:00:23]}  Ka8 {[%clk 0:00:12]} 29. Qxa7# {[%clk 0:00:23]} 1-0


[Site "https://www.chess.com"]

[Event "Titled Tuesday Blitz July 25 Late 2023"]
[White "Fedoseev, Vladimir"]
[Black "Basso, Pier Luigi"]
[WhiteFideId "24130737"]
[BlackFideId "866970"]
[WhiteElo "3066"]
[BlackElo "2786"]
[Result "1-0"]
[Round "3"]
[TimeControl "180+2"]
[Date "2023.07.25"]
[WhiteClock "0:00:19"]
[BlackClock "0:00:11"]
[Board "6"]

1. g3 {[%clk 0:03:00]}  d5 {[%clk 0:02:58]} 2. Bg2 {[%clk 0:03:00]}  c6 {[%clk 0:02:59]} 3. d3 {[%clk 0:02:59]}  Nf6 {[%clk 0:02:58]} 4. Nd2 {[%clk 0:02:58]}  e5 {[%clk 0:02:45]} 5. e4 {[%clk 0:02:57]}  Bd6 {[%clk 0:02:42]} 6. Ngf3 {[%clk 0:02:55]}  O-O {[%clk 0:02:41]} 7. O-O {[%clk 0:02:54]}  Re8 {[%clk 0:02:42]} 8. Re1 {[%clk 0:02:53]}  Nbd7 {[%clk 0:02:41]} 9. a3 {[%clk 0:02:32]}  a5 {[%clk 0:02:39]} 10. b3 {[%clk 0:02:32]}  h6 {[%clk 0:02:37]} 11. Bb2 {[%clk 0:02:31]}  d4 {[%clk 0:02:34]} 12. c3 {[%clk 0:02:29]}  c5 {[%clk 0:02:31]} 13. a4 {[%clk 0:02:28]}  b6 {[%clk 0:02:23]} 14. Nc4 {[%clk 0:02:27]}  Bc7 {[%clk 0:02:21]} 15. Qc2 {[%clk 0:02:26]}  Bb7 {[%clk 0:02:14]} 16. Rac1 {[%clk 0:02:25]}  Nf8 {[%clk 0:02:11]} 17. cxd4 {[%clk 0:02:21]}  exd4 {[%clk 0:02:12]} 18. Nh4 {[%clk 0:02:10]}  Ng6 {[%clk 0:01:55]} 19. Nxg6 {[%clk 0:01:48]}  fxg6 {[%clk 0:01:56]} 20. f4 {[%clk 0:01:34]}  Kh7 {[%clk 0:01:50]} 21. Rf1 {[%clk 0:01:17]}  Qd7 {[%clk 0:01:35]} 22. Rce1 {[%clk 0:01:12]}  b5 {[%clk 0:01:31]} 23. axb5 {[%clk 0:01:08]}  Qxb5 {[%clk 0:01:32]} 24. Ba3 {[%clk 0:01:03]}  Rab8 {[%clk 0:01:27]} 25. Rb1 {[%clk 0:01:01]}  Ba8 {[%clk 0:01:14]} 26. Bf3 {[%clk 0:00:59]}  Nd7 {[%clk 0:01:13]} 27. h4 {[%clk 0:00:56]}  Nf6 {[%clk 0:01:13]} 28. Kg2 {[%clk 0:00:54]}  Rbc8 {[%clk 0:01:04]} 29. Qd2 {[%clk 0:00:52]}  Rb8 {[%clk 0:00:44]} 30. Rfc1 {[%clk 0:00:50]}  Rbc8 {[%clk 0:00:43]} 31. Kh2 {[%clk 0:00:38]}  h5 {[%clk 0:00:38]} 32. Kg2 {[%clk 0:00:37]}  Ng4 {[%clk 0:00:36]} 33. Bxg4 {[%clk 0:00:37]}  hxg4 {[%clk 0:00:37]} 34. Qe2 {[%clk 0:00:37]}  Qd7 {[%clk 0:00:36]} 35. Bxc5 {[%clk 0:00:32]}  Bxf4 {[%clk 0:00:35]} 36. Nb6 {[%clk 0:00:32]}  Qf5 {[%clk 0:00:33]} 37. Nxc8 {[%clk 0:00:29]}  Bxc1 {[%clk 0:00:22]} 38. Nd6 {[%clk 0:00:26]}  Rxe4 {[%clk 0:00:21]} 39. Nxe4 {[%clk 0:00:19]}  Qxc5 {[%clk 0:00:19]} 40. Kh2 {[%clk 0:00:20]}  Be3 {[%clk 0:00:11]} 41. Nxc5 {[%clk 0:00:19]} 1-0


[Site "https://www.chess.com"]